Cogmind - Beta 15 @@@ ROGUE MODE // 2025.05.23 @ 16:15:41 // Winter2022/Polymind Player: Demo Result: Destroyed by P-80 Master with Gamma Rifle Performance ------------- Evolutions (9) 4500 Regions Visited (15) 3000 Robots Destroyed (6) 30 Value Destroyed (250) 250 Prototype IDs (0) 0 Alien Tech Used (0) 0 Bonus (9344) 9344 TOTAL SCORE: 16864 Bonus ------- Polymind Skill 5492 Pacifist 1384 Follower Combat Kills 168 Entered DSFs 500 Registered with UFD 300 Met Optimus in HQ 500 Met Warlord at Base 500 MAIN.C Attacked Warlord 500 Cogmind --------- Core Integrity 0/1600 Matter 0/0 Energy 140/140 System Corruption 14% Temperature Cool (0) Movement Walking (120) Location -1/Access Parts ------- > --- POWER (1) -------- Light Quantum Reactor > --- PROPULSION (2) --- Myomer Leg Myomer Leg > --- UTILITY (2) ------ Advanced Heat Sink Advanced Heat Sink > --- WEAPON (2) ------- Heavy Laser > --- INVENTORY (1) ---- (None) Peak State ------------ > --- POWER ------------ Micro Antimatter Reactor > --- PROPULSION ------- Improved Antigrav System Improved Antigrav System Improved Antigrav System > --- UTILITY ---------- Advanced Heat Sink Advanced Heat Sink Small Battery Small Battery Advanced Target Analyzer > --- WEAPON ----------- Gamma Rifle Gamma Rifle Advanced Remote Datajack > --- INVENTORY -------- (None) [Rating: 72] Favorites ----------- Power Micro Fission Core Engine Light Ion Engine Power Core Micro Fission Core Reactor Light Antimatter Reactor Propulsion Antigrav System Treads Medium Treads Leg Myomer Leg Wheel Wheel Hover Unit Antigrav System Flight Unit Xenon Bombardment Thruster Utility Improved Heat Sink Device Improved Heat Sink Storage Small Battery Processor Improved Target Analyzer Weapon Tesla Rifle Energy Gun Tesla Rifle Ballistic Gun Heavy Machine Gun Special Weapon Improved Remote Datajack Build | -11 -10 -10 -10 -7 -5 -5 -4 -4 -4 -4 -3 -3 -3 -2 -1 ------- Run | Yrd Mat Min Sub Scr Fac DSF Fac Upp Upp War Pro Res Qua Res Acc Slots Evolved . | . . . . . . . . . . . . . . . . Power . | . . . . . . . . . . . . . . . . Propulsion . | . . . . . . . . . . . . . . . . Utility . | . . . . . . . . . . . . . . . . Weapon . | . . . . . . . . . . . . . . . . Parts Attached . | . . . . . . . . . . . . . . . . Power . | . . . . . . . . . . . . . . . . Engine . | . . . . . . . . . . . . . . . . Core . | . . . . . . . . . . . . . . . . Reactor . | . . . . . . . . . . . . . . . . Propulsion . | . . . . . . . . . . . . . . . . Treads . | . . . . . . . . . . . . . . . . Leg . | . . . . . . . . . . . . . . . . Wheel . | . . . . . . . . . . . . . . . . Hover . | . . . . . . . . . . . . . . . . Flight . | . . . . . . . . . . . . . . . . Utility . | . . . . . . . . . . . . . . . . Device . | . . . . . . . . . . . . . . . . Storage . | . . . . . . . . . . . . . . . . Processor . | . . . . . . . . . . . . . . . . Hackware . | . . . . . . . . . . . . . . . . Protection . | . . . . . . . . . . . . . . . . Artifact . | . . . . . . . . . . . . . . . . Weapon . | . . . . . . . . . . . . . . . . Energy Gun . | . . . . . . . . . . . . . . . . Energy Cannon . | . . . . . . . . . . . . . . . . Ballistic Gun . | . . . . . . . . . . . . . . . . Ballistic Cannon . | . . . . . . . . . . . . . . . . Launcher . | . . . . . . . . . . . . . . . . Special Weapon . | . . . . . . . . . . . . . . . . Impact Weapon . | . . . . . . . . . . . . . . . . Slashing Weapon . | . . . . . . . . . . . . . . . . Piercing Weapon . | . . . . . . . . . . . . . . . . Special Melee Weapon . | . . . . . . . . . . . . . . . . Unidentified Prototypes . | . . . . . . . . . . . . . . . . Parts Lost 46 | . . . . . . 5 . . 5 . . 13 3 1 19 Power 10 | . . . . . . 1 . . 1 . . 2 1 . 5 Propulsion 18 | . . . . . . 1 . . 2 . . 8 . 1 6 Utility 11 | . . . . . . 2 . . . . . 2 2 . 5 Weapon 7 | . . . . . . 1 . . 2 . . 1 . . 3 Highest Loss Streak 11 | . . . . . . 5 . . 4 . . 11 3 1 8 To Critical Strikes . | . . . . . . . . . . . . . . . . Average Backups . | . . . . . . . . . . . . . . . . Power . | . . . . . . . . . . . . . . . . Propulsion . | . . . . . . . . . . . . . . . . Utility . | . . . . . . . . . . . . . . . . Weapon . | . . . . . . . . . . . . . . . . Tool/Special . | . . . . . . . . . . . . . . . . Unused Backups 12 | . . . . . . . . . . . . 7 5 . . Power . | . . . . . . . . . . . . . . . . Propulsion 5 | . . . . . . . . . . . . . 5 . . Utility 5 | . . . . . . . . . . . . 5 . . . Weapon 2 | . . . . . . . . . . . . 2 . . . Tool/Special . | . . . . . . . . . . . . . . . . Average Slot Usage (%) 84 | . . 100 100 100 100 72 12 100 99 88 88 90 81 77 59 Engine 6 | . . 16 16 16 16 10 . 16 6 . . 3 11 20 5 Core 4 | . . . . . . . . . 6 11 11 3 . . . Reactor 1 | . . . . . . . . . . . . 6 1 . 3 Treads 1 | . . . . . . . . . . . . 2 22 . . Wheel 11 | . . 33 33 33 33 27 12 33 12 . . 5 2 37 9 Hover 10 | . . . . . . . . . 13 22 22 7 . . 7 Flight 1 | . . . . . . . . . . . . 20 4 . . Device 20 | . . 33 33 33 33 22 . 33 26 22 22 12 12 . 7 Storage 2 | . . . . . . . . . . . . 2 12 20 10 Processor 6 | . . . . . . . . . 6 11 11 7 11 . 4 Energy Gun 6 | . . . . . . . . . 13 11 11 3 . . 7 Special Weapon 9 | . . 16 16 16 16 10 . 16 12 11 11 5 . . 2 Peak Build Rating 72 | . 8 8 8 8 8 8 1 8 46 43 43 43 24 4 72 Average Rating 27 | . . 8 8 8 8 5 . 8 31 42 43 24 13 3 30 On Entrance 12 | . . 8 8 8 8 8 1 8 8 41 43 43 3 4 3 Naked Turns 126 | . 34 . . . . . 8 . 1 . . 2 8 . 73 Heaviest Build 30 | . 6 6 6 6 6 6 6 6 21 16 16 27 27 5 30 Greatest Support 65 | 3 20 20 20 20 20 20 20 20 22 22 22 65 65 20 50 Greatest Overweight (x) 3 | . . . . . . . . . . . . . . . 3 Average Overweight (x) . | . . . . . . . . . . . . . . . . Largest Inventory Capacity 10 | . . . . . . . . . 5 5 5 10 10 1 5 Average Capacity 3 | . . . . . . . . . 3 5 5 2 6 1 2 Most Carried 10 | . . . . . . . . . . 4 4 7 10 . . Average Carried 1 | . . . . . . . . . . 2 4 1 . . . Final Capacity 5 | . . . . . . . . . 5 5 5 . 1 1 1 Final Carried 4 | . . . . . . . . . . 4 4 . . . . Class Distribution -------------------- 50% | Programmer 25% | Tunneler 7% | Worker 5% | Hauler 3% | Cogmind 3% | Z-Heavy Dominant Class ---------------- Cogmind | -10/Materials Tunneler | -10/Mines Tunneler | -10/Subcaves Tunneler | -7/Scraptown Tunneler | -5/Factory Tunneler | -5/DSF Tunneler | -4/Factory Tunneler | -4/Upper Caves Programmer | -4/Upper Caves Programmer | -4/Warlord Programmer | -3/Proximity Caves Swarmer | -3/Research Hauler | -3/Quarantine Worker | -2/Research Programmer | -1/Access Resources | -11 -10 -10 -10 -7 -5 -5 -4 -4 -4 -4 -3 -3 -3 -2 -1 ----------- Run | Yrd Mat Min Sub Scr Fac DSF Fac Upp Upp War Pro Res Qua Res Acc Matter Collected . | . . . . . . . . . . . . . . . . Remotely . | . . . . . . . . . . . . . . . . Salvage Created 291 | . . . . . . . . . 152 . . . 18 . 121 Parts 15 | . . . . . . . . . 7 . . . 2 . 6 Haulers Intercepted . | . . . . . . . . . . . . . . . . Recyclers Shooed . | . . . . . . . . . . . . . . . . Parts Field Recycled . | . . . . . . . . . . . . . . . . Retrieved Matter . | . . . . . . . . . . . . . . . . Parts Self-Destructed 1 | . . . . . . . . . 1 . . . . . . Prevented 5 | . . . . . . . . . 5 . . . . . . Kills | -11 -10 -10 -10 -7 -5 -5 -4 -4 -4 -4 -3 -3 -3 -2 -1 ------- Run | Yrd Mat Min Sub Scr Fac DSF Fac Upp Upp War Pro Res Qua Res Acc Combat Hostiles Destroyed 4 | . . . . . . . . . 1 . . . 2 . 1 Melee 2 | . . . . . . . . . . . . . 2 . . Guns 1 | . . . . . . . . . . . . . . . 1 Classes Destroyed 4 | . . . . . . . . . 3 . . . 1 . . Tunneler 2 | . . . . . . . . . 1 . . . . . 1 Swarmer 2 | . . . . . . . . . . . . . 2 . . Programmer 2 | . . . . . . . . . 1 . . . . . 1 Decomposer 2 | . . . . . . . . . 2 . . . . . . Best Kill Streak 3 | . . . . . . . . . 3 . . . 2 . 1 Combat Bots Only 2 | . . . . . . . . . 1 . . . 2 . 1 Max Kills in Single Turn 1 | . . . . . . . . . 1 . . . 1 . 1 Gunslinging . | . . . . . . . . . . . . . . . . Exploded . | . . . . . . . . . . . . . . . . Melee 1 | . . . . . . . . . . . . . 1 . . Uniques/NPCs Destroyed . | . . . . . . . . . . . . . . . . Combat | -11 -10 -10 -10 -7 -5 -5 -4 -4 -4 -4 -3 -3 -3 -2 -1 -------- Run | Yrd Mat Min Sub Scr Fac DSF Fac Upp Upp War Pro Res Qua Res Acc Hostile Shots Fired 505 | . . . 1 . . 5 8 . 49 1 . 163 43 2 233 Missed 193 | . . . 1 . . . 5 . 13 1 . 78 12 . 83 Hits 312 | . . . . . . 5 3 . 36 . . 85 31 2 150 Melee 1 | . . . . . . . . . . . . 1 . . . Projectile 311 | . . . . . . 5 3 . 36 . . 84 31 2 150 AOE 1 | . . . . . . . . . . . . . . . 1 Critical Strikes 25 | . . . . . . 1 . . 4 . . 7 1 . 12 Part Disruptions 1 | . . . . . . . . . . . . . . . 1 Damage Taken 7452 | . . . . . . 385 69 . 573 . . 2175 677 59 3514 Core 3126 | . . . . . . 240 69 . 104 . . 920 173 . 1620 Absorbed by Shields . | . . . . . . . . . . . . . . . . Ignored by Resistances 993 | . . . . . . . . . 300 . . . . . 693 Regen/Repaired (Parts) 55 | . . . . . . . . . . 55 . . . . . Core Remaining (%) 79 | 100 . . . 100 . 76 . . . . 84 . 15 100 . Volleys Fired 33 | . . . . . . . . . 21 . . . . . 12 Largest 2 | . . . . . . . . . 2 . . . . . 2 Hottest 195 | . . . . . . . . . 125 . . . . . 195 Shots Fired 50 | . . . . . . . . . 30 . . . . . 20 Gun 49 | . . . . . . . . . 29 . . . . . 20 Cannon . | . . . . . . . . . . . . . . . . Launcher . | . . . . . . . . . . . . . . . . Special 1 | . . . . . . . . . 1 . . . . . . Kinetic . | . . . . . . . . . . . . . . . . Thermal 15 | . . . . . . . . . 1 . . . . . 14 Explosive . | . . . . . . . . . . . . . . . . Electromagnetic 35 | . . . . . . . . . 29 . . . . . 6 Robot Hit Streak 9 | . . . . . . . . . 9 . . . . . 4 Robot Miss Streak 2 | . . . . . . . . . 2 . . . . . 2 Penetration Max . | . . . . . . . . . . . . . . . . Secondary Targets . | . . . . . . . . . . . . . . . . Shots Hit Robots 34 | . . . . . . . . . 22 . . . . . 12 Core Hits 19 | . . . . . . . . . 10 . . 1 1 . 7 Critical Kills . | . . . . . . . . . . . . . . . . Critical Parts Destroyed . | . . . . . . . . . . . . . . . . Critical Strikes 3 | . . . . . . . . . 3 . . . . . . Corrupt 3 | . . . . . . . . . 3 . . . . . . Melee Attacks . | . . . . . . . . . . . . . . . . Impact . | . . . . . . . . . . . . . . . . Slashing . | . . . . . . . . . . . . . . . . Piercing . | . . . . . . . . . . . . . . . . Sneak Attacks . | . . . . . . . . . . . . . . . . Combat Hostiles . | . . . . . . . . . . . . . . . . Follow-up Attacks . | . . . . . . . . . . . . . . . . Damage Inflicted 694 | . . . . . . . . . 223 . . 17 10 4 440 Guns 599 | . . . . . . . . . 189 . . . . . 410 Cannons . | . . . . . . . . . . . . . . . . Explosions . | . . . . . . . . . . . . . . . . Melee . | . . . . . . . . . . . . . . . . Ramming 95 | . . . . . . . . . 34 . . 17 10 4 30 Kinetic . | . . . . . . . . . . . . . . . . Thermal 326 | . . . . . . . . . . . . . . . 326 Explosive . | . . . . . . . . . . . . . . . . Electromagnetic 273 | . . . . . . . . . 189 . . . . . 84 Impact . | . . . . . . . . . . . . . . . . Slashing . | . . . . . . . . . . . . . . . . Piercing . | . . . . . . . . . . . . . . . . Highest Corruption 14 | . . . . . 1 1 . . 3 3 . 7 7 . 14 Average Corruption 4 | . . . . . 1 1 . . 2 3 . 5 7 . 5 Corruption Purged . | . . . . . . . . . . . . . . . . Corruption Blocked . | . . . . . . . . . . . . . . . . Effects 18 | . . . . . . . . . 3 . . . 5 . 10 Message Errors 4 | . . . . . . . . . 1 . . . 2 . 1 Matter Fused 2 | . . . . . . . . . . . . . . . 2 Heat Flow Errors 3 | . . . . . . . . . . . . . 2 . 1 Energy Discharges 5 | . . . . . . . . . 1 . . . 1 . 3 Data Loss (minor) 1 | . . . . . . . . . . . . . . . 1 Data Loss (major) 1 | . . . . . . . . . . . . . . . 1 Misfires 1 | . . . . . . . . . . . . . . . 1 Weapon Failures 1 | . . . . . . . . . 1 . . . . . . Overload Shots . | . . . . . . . . . . . . . . . . Overflow Damage . | . . . . . . . . . . . . . . . . Projectiles . | . . . . . . . . . . . . . . . . Explosions . | . . . . . . . . . . . . . . . . Melee . | . . . . . . . . . . . . . . . . Knockbacks . | . . . . . . . . . . . . . . . . Impact . | . . . . . . . . . . . . . . . . Kinetic . | . . . . . . . . . . . . . . . . Secondary . | . . . . . . . . . . . . . . . . Self-Inflicted Damage 32 | . . . . . . . . . 14 . . 4 . 2 12 Shots . | . . . . . . . . . . . . . . . . Rammed 32 | . . . . . . . . . 10 . . 7 5 1 9 Targets Rammed 34 | . . . . . . . . . 10 . . 7 7 1 9 Kicked . | . . . . . . . . . . . . . . . . Crushed 2 | . . . . . . . . . . . . . 2 . . Highest Temperature 369 | . . . . . . . . . 161 . . 3 198 1 369 Average Temperature 121 | . . . . . . . . . 76 . . 3 113 1 176 Received Heat Transfer 312 | . . . . . . . 9 . 51 . . 57 42 9 144 Effects 1 | . . . . . . . . . . . . . . . 1 Damage (minor) 1 | . . . . . . . . . . . . . . . 1 Siege Activations . | . . . . . . . . . . . . . . . . Martial Activations . | . . . . . . . . . . . . . . . . Shielding Activations . | . . . . . . . . . . . . . . . . Robots Disrupted . | . . . . . . . . . . . . . . . . Combat Hostiles . | . . . . . . . . . . . . . . . . Robots Corrupted 1 | . . . . . . . . . 1 . . . . . . Combat Hostiles 1 | . . . . . . . . . 1 . . . . . . Parts Fried 4 | . . . . . . . . . 4 . . . . . . Impact Corruptions . | . . . . . . . . . . . . . . . . Robots Melted . | . . . . . . . . . . . . . . . . Combat Hostiles . | . . . . . . . . . . . . . . . . Parts Melted . | . . . . . . . . . . . . . . . . Heat Transferred 422 | . . . . . . . . . . . . . . . 422 Parts Sabotaged . | . . . . . . . . . . . . . . . . Parts Stolen . | . . . . . . . . . . . . . . . . Parts Stripped . | . . . . . . . . . . . . . . . . Power Chain Reactions . | . . . . . . . . . . . . . . . . Alert | -11 -10 -10 -10 -7 -5 -5 -4 -4 -4 -4 -3 -3 -3 -2 -1 ------- Run | Yrd Mat Min Sub Scr Fac DSF Fac Upp Upp War Pro Res Qua Res Acc Maximum Alert Level 2 | . . . . . . . . . . . . 2 1 . . Low Security (%) 72 | 100 100 100 . . 100 100 100 . . . . 41 10 100 100 Level 1 22 | . . . . . . . . . . . . 31 89 . . Level 2 4 | . . . . . . . . . . . . 27 . . . Level 3 . | . . . . . . . . . . . . . . . . Level 4 . | . . . . . . . . . . . . . . . . Level 5 . | . . . . . . . . . . . . . . . . High Security . | . . . . . . . . . . . . . . . . Max Security . | . . . . . . . . . . . . . . . . Peak Influence 465 | . . . . . . . . . . . . 465 366 182 171 Initial 182 | . . . . . . . . . . . . . 176 182 84 Average 145 | . . . . . . . . . . . . 259 304 169 84 Influence Increases 1343 | . . . . . . . . . 40 . . 545 300 . 458 Destroy 0b10 Robot/C 140 | . . . . . . . . . 20 . . . 40 . 80 Destroy 0b10 Robot/NC 15 | . . . . . . . . . 10 . . . . . 5 Destroy Leader 40 | . . . . . . . . . 10 . . . . . 30 Allied During Kill 28 | . . . . . . . . . . . . . . . 28 Anti-Garrison Action 400 | . . . . . . . . . . . . 200 200 . . Destroy Structure 30 | . . . . . . . . . . . . . . . 30 Lose Combat Pursuer 690 | . . . . . . . . . . . . 345 60 . 285 Influence Decreases 1328 | . . . . . . . . . 40 . . 231 289 183 585 Entered New Map 339 | . . . . . . . . . . . . . 138 143 58 Time Decay 534 | . . . . . . . . . 40 . . 100 120 30 244 Lost Part 354 | . . . . . . . . . . . . 130 30 10 184 Lost Ally 80 | . . . . . . . . . . . . . . . 80 Miscellaneous 21 | . . . . . . . . . . . . 1 1 . 19 Squads Dispatched 29 | . . . . . 1 . 1 . 1 . . 6 3 . 17 Investigation 15 | . . . . . 1 . 1 . . . . 4 2 . 7 Extermination 5 | . . . . . . . . . . . . . 1 . 4 Reinforcement 8 | . . . . . . . . . . . . 2 . . 6 Assault 1 | . . . . . . . . . 1 . . . . . . Garrison . | . . . . . . . . . . . . . . . . Intercept . | . . . . . . . . . . . . . . . . Searches Triggered . | . . . . . . . . . . . . . . . . Construction Impeded 2 | . . . . . . . . . . . . 1 . . 1 Haulers Reinforced . | . . . . . . . . . . . . . . . . Active Scanning Responses . | . . . . . . . . . . . . . . . . Cargo Convoy Interrupts . | . . . . . . . . . . . . . . . . Stealth | -11 -10 -10 -10 -7 -5 -5 -4 -4 -4 -4 -3 -3 -3 -2 -1 --------- Run | Yrd Mat Min Sub Scr Fac DSF Fac Upp Upp War Pro Res Qua Res Acc Distress Signals 4 | . . . . . . . . . . . . 2 . . 2 Communications Jammed . | . . . . . . . . . . . . . . . . Distress Signals . | . . . . . . . . . . . . . . . . Times Spotted 132 | . . . 1 . . 1 2 . 10 1 . 53 15 1 48 Peak Tracking Total 22 | . . . 1 . . 1 2 . 7 1 . 22 7 1 12 Tactical Retreats 11 | . . . . . . . . . . . . 4 2 . 5 Traps | -11 -10 -10 -10 -7 -5 -5 -4 -4 -4 -4 -3 -3 -3 -2 -1 ------- Run | Yrd Mat Min Sub Scr Fac DSF Fac Upp Upp War Pro Res Qua Res Acc Traps Triggered 4 | . . . . . . . . . . . . 2 . . 2 Indirectly . | . . . . . . . . . . . . . . . . Trap Hack Attempts . | . . . . . . . . . . . . . . . . Triggered . | . . . . . . . . . . . . . . . . Disarmed . | . . . . . . . . . . . . . . . . Reprogrammed . | . . . . . . . . . . . . . . . . Reused . | . . . . . . . . . . . . . . . . Traps Extracted . | . . . . . . . . . . . . . . . . Installed . | . . . . . . . . . . . . . . . . Triggered . | . . . . . . . . . . . . . . . . Machines | -11 -10 -10 -10 -7 -5 -5 -4 -4 -4 -4 -3 -3 -3 -2 -1 ---------- Run | Yrd Mat Min Sub Scr Fac DSF Fac Upp Upp War Pro Res Qua Res Acc Machines Disabled . | . . . . . . . . . . . . . . . . Max in Single Turn . | . . . . . . . . . . . . . . . . Garrison Access 2 | . . . . . . . . . . . . 1 1 . . Machines Repaired . | . . . . . . . . . . . . . . . . Machines Dismantled . | . . . . . . . . . . . . . . . . Machines Sabotaged . | . . . . . . . . . . . . . . . . Overloaded Fab Kills . | . . . . . . . . . . . . . . . . Hacking | -11 -10 -10 -10 -7 -5 -5 -4 -4 -4 -4 -3 -3 -3 -2 -1 --------- Run | Yrd Mat Min Sub Scr Fac DSF Fac Upp Upp War Pro Res Qua Res Acc Machines Accessed 30 | . . . . 1 2 . 1 . . 11 . 4 3 . 8 Terminals 8 | . . . . . 1 . . . . . . 1 2 . 4 Fabricators . | . . . . . . . . . . . . . . . . Repair Stations . | . . . . . . . . . . . . . . . . Recycling Units 6 | . . . . . . . 1 . . . . 2 . . 3 Scanalyzers . | . . . . . . . . . . . . . . . . Garrison Access 4 | . . . . . 1 . . . . . . 1 1 . 1 Total Hacks 61 | . . . . 1 3 . 4 . . 21 . 8 6 . 18 Successful 26 | . . . . 1 1 . . . . 21 . 1 1 . 1 Failed 35 | . . . . . 2 . 4 . . . . 7 5 . 17 Catastrophic 11 | . . . . . . . . . . . . 3 1 . 7 Database Lockouts . | . . . . . . . . . . . . . . . . Manual 21 | . . . . . . . 4 . . . . 5 5 . 7 Terminals 17 | . . . . . 1 . . . . . . 2 5 . 9 Fabricators . | . . . . . . . . . . . . . . . . Repair Stations . | . . . . . . . . . . . . . . . . Recycling Units 14 | . . . . . . . 4 . . . . 4 . . 6 Scanalyzers . | . . . . . . . . . . . . . . . . Garrison Access 8 | . . . . . 2 . . . . . . 2 1 . 3 Terminal Hacks 23 | . . . . 1 1 . . . . 21 . . . . . Record 20 | . . . . 1 . . . . . 19 . . . . . Open Door 2 | . . . . . . . . . . 2 . . . . . Open DSF 1 | . . . . . 1 . . . . . . . . . . Fabricator Hacks . | . . . . . . . . . . . . . . . . Repair Station Hacks . | . . . . . . . . . . . . . . . . Recycling Unit Hacks . | . . . . . . . . . . . . . . . . Scanalyzer . | . . . . . . . . . . . . . . . . Garrison Access Hacks . | . . . . . . . . . . . . . . . . Unauthorized Hacks 3 | . . . . . . . . . . . . 1 1 . 1 Terminals . | . . . . . . . . . . . . . . . . Fabricators . | . . . . . . . . . . . . . . . . Repair Stations . | . . . . . . . . . . . . . . . . Recycling Units 1 | . . . . . . . . . . . . . . . 1 Scrapoids 1 | . . . . . . . . . . . . . . . 1 Scanalyzers . | . . . . . . . . . . . . . . . . Garrison Access 2 | . . . . . . . . . . . . 1 1 . . Jam 2 | . . . . . . . . . . . . 1 1 . . Data Cores Recovered . | . . . . . . . . . . . . . . . . Used . | . . . . . . . . . . . . . . . . Hacking Detections 15 | . . . . . 1 . 1 . . . . 4 2 . 7 Full Trace Events 11 | . . . . . 1 . 1 . . . . 2 1 . 6 Feedback Events 2 | . . . . . 1 . . . . . . . . . 1 Corruption 2 | . . . . . 1 . . . . . . . . . 1 Feedback Blocked . | . . . . . . . . . . . . . . . . Robot Schematics Acquired . | . . . . . . . . . . . . . . . . Robots Built . | . . . . . . . . . . . . . . . . Authchips . | . . . . . . . . . . . . . . . . Time . | . . . . . . . . . . . . . . . . Total Robot Build Rating . | . . . . . . . . . . . . . . . . Part Schematics Acquired . | . . . . . . . . . . . . . . . . Parts Built . | . . . . . . . . . . . . . . . . Authchips . | . . . . . . . . . . . . . . . . Time . | . . . . . . . . . . . . . . . . Total Part Build Rating . | . . . . . . . . . . . . . . . . Parts Repaired . | . . . . . . . . . . . . . . . . Time . | . . . . . . . . . . . . . . . . Parts Recycled . | . . . . . . . . . . . . . . . . Recycled Matter . | . . . . . . . . . . . . . . . . Retrieved Matter . | . . . . . . . . . . . . . . . . Retrieved Components . | . . . . . . . . . . . . . . . . Parts Scanalyzed . | . . . . . . . . . . . . . . . . Part Schematics Acquired . | . . . . . . . . . . . . . . . . Parts Damaged . | . . . . . . . . . . . . . . . . Bothacking | -11 -10 -10 -10 -7 -5 -5 -4 -4 -4 -4 -3 -3 -3 -2 -1 ------------ Run | Yrd Mat Min Sub Scr Fac DSF Fac Upp Upp War Pro Res Qua Res Acc Used RIF Installer . | . . . . . . . . . . . . . . . . Robots Hacked 8 | . . . . . . . . . 1 . . 3 2 . 2 Non-combat 3 | . . . . . . . . . . . . 2 1 . . Combat 5 | . . . . . . . . . 1 . . 1 1 . 2 Robot Hacks Applied 13 | . . . . . . . . . 1 . . 6 2 . 4 map_walls 1 | . . . . . . . . . . . . 1 . . . find_fabricator 1 | . . . . . . . . . . . . 1 . . . find_dsf 1 | . . . . . . . . . . . . 1 . . . locate_stockpiles 2 | . . . . . . . . . . . . 1 1 . . find_shortcuts 5 | . . . . . . . . . 1 . . 1 1 . 2 find_garrison 3 | . . . . . . . . . . . . 1 . . 2 Relay Couplers Released . | . . . . . . . . . . . . . . . . Fabnet Peak Effective % . | . . . . . . . . . . . . . . . . Robots Rewired 2 | . . . . . . . . . 2 . . . . . . Allies Hacked . | . . . . . . . . . . . . . . . . Hacks Repelled . | . . . . . . . . . . . . . . . . Allies | -11 -10 -10 -10 -7 -5 -5 -4 -4 -4 -4 -3 -3 -3 -2 -1 -------- Run | Yrd Mat Min Sub Scr Fac DSF Fac Upp Upp War Pro Res Qua Res Acc Total Allies 9 | . . . . . . . . . 2 1 . . . . 6 Largest Group 4 | . . . . . . . . . 1 . . . . . 4 Highest-Rated Group 256 | . . . . . . . . . 47 . . . . . 256 Highest-Rated Ally 64 | . . . . . . . . . 47 . . . . . 64 Total Orders . | . . . . . . . . . . . . . . . . Ally Attacks 33 | . . . . . . . . . 4 . . . . . 29 Total Damage 869 | . . . . . . . . . 136 . . . . . 733 Kills 4 | . . . . . . . . . . . . . . . 4 Allies Corrupted . | . . . . . . . . . . . . . . . . Allies Melted . | . . . . . . . . . . . . . . . . Intel | -11 -10 -10 -10 -7 -5 -5 -4 -4 -4 -4 -3 -3 -3 -2 -1 ------- Run | Yrd Mat Min Sub Scr Fac DSF Fac Upp Upp War Pro Res Qua Res Acc Active Infowar (turns) 1126 | . 2 20 59 266 86 29 . 346 79 . . 49 190 . . Terrain 914 | . 2 20 59 266 86 29 . 346 79 . . 27 . . . Structural 58 | . . . . . . . . . . . . 28 30 . . Seismic 887 | . 2 20 59 266 86 29 . 346 79 . . . . . . T.N.C. 181 | . . . . . . . . . . . . 21 160 . . Robot Analysis Total 9 | . 1 . . . . . . . 1 . . 4 . . 3 Derelict Logs Recovered 3 | . . . . . . . . 1 2 . . . . . . Drone Launches . | . . . . . . . . . . . . . . . . Drone Recoveries . | . . . . . . . . . . . . . . . . Exploration | -11 -10 -10 -10 -7 -5 -5 -4 -4 -4 -4 -3 -3 -3 -2 -1 ------------- Run | Yrd Mat Min Sub Scr Fac DSF Fac Upp Upp War Pro Res Qua Res Acc Turns Passed 3717 | 9 36 20 59 266 86 44 45 346 221 1037 455 221 259 65 548 Spaces Moved 4288 | 18 70 22 48 325 108 55 84 433 215 1046 313 428 266 81 776 Core 415 | 18 67 . . . . . 75 . 1 . . 32 69 . 153 Treads 111 | . . . . . . . . . . . . 11 100 . . Legs 2 | . . . . . . . . . . . . . . . 2 Wheels 1554 | . 3 22 48 325 108 55 9 433 81 . . 39 32 81 318 Hover 1919 | . . . . . . . . . 133 1046 313 124 . . 303 Flight 287 | . . . . . . . . . . . . 222 65 . . Fastest Speed 34 | 50 50 80 80 80 80 80 50 80 50 56 56 34 34 80 50 Average Speed 65 | 50 51 80 80 80 80 80 53 80 65 56 56 49 91 80 63 Slowest Speed 200 | 50 80 80 80 80 80 80 80 80 80 56 56 160 160 80 200 Overloaded Moves . | . . . . . . . . . . . . . . . . Propulsion Burnouts . | . . . . . . . . . . . . . . . . Robots Hopped 21 | . . . . . . . . . . . . 17 4 . . Potential Cave-ins . | . . . . . . . . . . . . . . . . Cave-ins Triggered . | . . . . . . . . . . . . . . . . Exploration Rate (%) 27 | 3 13 6 3 36 5 63 3 57 33 93 43 18 32 4 26 Regions Visited 15 Branch Regions 8 Pre-discovered Areas . | . . . . . . . . . . . . . . . . Known Exits Taken 2 | . . . . . 1 . . . . . . 1 . . . Unknown Exits Taken 12 | 1 1 1 1 1 . . 1 1 1 1 1 . 1 1 . Scrap Searched 1 | . . . . . . . . . 1 . . . . . . Spaces Dug . | . . . . . . . . . . . . . . . . Terrain Destroyed . | . . . . . . . . . . . . . . . . Melee . | . . . . . . . . . . . . . . . . Projectile . | . . . . . . . . . . . . . . . . AOE . | . . . . . . . . . . . . . . . . Terrain Rammed . | . . . . . . . . . . . . . . . . Walls Destroyed . | . . . . . . . . . . . . . . . . Machines Disabled . | . . . . . . . . . . . . . . . . Actions | -11 -10 -10 -10 -7 -5 -5 -4 -4 -4 -4 -3 -3 -3 -2 -1 --------- Run | Yrd Mat Min Sub Scr Fac DSF Fac Upp Upp War Pro Res Qua Res Acc Total 4971 | 17 69 24 68 330 107 54 84 432 257 1478 460 419 276 81 815 Wait 474 | . . . 21 6 . . . . 1 411 16 1 1 . 17 Move 4235 | 17 69 21 47 324 107 54 83 432 214 1045 312 394 259 81 776 Hop 18 | . . . . . . . . . . . . 16 2 . . Pick Up 4 | . . . . . . . . . . 4 . . . . . Fast Attach . | . . . . . . . . . . . . . . . . Attach . | . . . . . . . . . . . . . . . . Detach . | . . . . . . . . . . . . . . . . Swap . | . . . . . . . . . . . . . . . . Drop 5 | . . . . . . . . . . . . . 5 . . Fire 33 | . . . . . . . . . 21 . . . . . 12 Melee . | . . . . . . . . . . . . . . . . Ram 24 | . . . . . . . . . 10 . . 5 . . 9 Kick . | . . . . . . . . . . . . . . . . Crush 9 | . . . . . . . . . . . . 2 7 . . Escape Stasis . | . . . . . . . . . . . . . . . . Rewire 4 | . . . . . . . 1 . 1 . . . 2 . . Trap . | . . . . . . . . . . . . . . . . Miscellaneous 165 | . . 3 . . . . . . 10 18 132 1 . . 1 Route ------- -11/Scrapyard -10/Materials -10/Mines -10/Subcaves -7/Scraptown -5/Factory -5/DSF -4/Factory -4/Upper Caves -4/Upper Caves -4/Warlord -3/Proximity Caves -3/Research (discovered 2 exits: *Qua x2) -3/Quarantine -2/Research -1/Access History --------- Turn | Location | Event 5 | -11/Scrapyard | Discovered new exit (range 12) 10 | -11/Scrapyard | Entered Materials 38 | -10/Materials | Discovered new exit (range 15) 46 | -10/Materials | Entered Mines 63 | -10/Mines | Discovered new exit (range 3) 66 | -10/Mines | Entered Subcaves 67 | -10/Subcaves | Approached by a straggling Scientist 91 | -10/Subcaves | Scientist uncovered a shortcut to Scraptown 125 | -10/Subcaves | Entered Scraptown 206 | -7/Scraptown | Visited UFD Registry 206 | -7/Scraptown | Registered with UFD as "Wirewarp" 227 | -7/Scraptown | Heard Great Nut preacher, LISTEN AND RECITE! 231 | -7/Scraptown | Visited Shadow of the Wyrm 340 | -7/Scraptown | Met Optimus 340 | -7/Scraptown | Accepted into 0bPrime 389 | -7/Scraptown | Discovered new exit (range 3) 391 | -7/Scraptown | Entered Factory 477 | -5/Factory | Identified exit to DSF 477 | -5/Factory | Entered DSF 510 | -5/DSF | Discovered new exit (range 14) 521 | -5/DSF | Entered Factory 537 | -4/Factory | Lost 5 parts (1p1n2u1w) 548 | -4/Factory | Discovered new exit (range 11) 566 | -4/Factory | Entered Upper Caves 585 | -4/Upper Caves | Learned 4 Research zone layouts 902 | -4/Upper Caves | Discovered new exit (range 12) 908 | -4/Upper Caves | Encountered a Warlord checkpoint 912 | -4/Upper Caves | Entered another Upper Caves area 926 | -4/Upper Caves | Spotted B-86 Titan 969 | -4/Upper Caves | P-70 Sage assimilated allied 1W-EY1(k) 1023 | -4/Upper Caves | Lost 4 parts (1p2n1w) 1113 | -4/Upper Caves | Discovered new exit (range 5) 1122 | -4/Upper Caves | Attracted the attention of an 0b10 outpost 1133 | -4/Upper Caves | Entered Warlord 1153 | -4/Warlord | System corruption cleaned by Quarantine Array 1228 | -4/Warlord | Visited the Vortex Lab 1248 | -4/Warlord | Warlord's base attacked by MAIN.C 1404 | -4/Warlord | Rebuked by Warlord 1598 | -4/Warlord | Warlord forces counterattacked 1611 | -4/Warlord | Spotted Striker 1651 | -4/Warlord | Spotted Striker 1658 | -4/Warlord | Spotted Striker 1666 | -4/Warlord | Spotted Executioner 1704 | -4/Warlord | Lost 10 allies 1734 | -4/Warlord | Opened side exit 1750 | -4/Warlord | Spotted Striker 1824 | -4/Warlord | Lost 10 allies 1825 | -4/Warlord | Spotted Striker 1923 | -4/Warlord | Warlord base infiltrated, sounded retreat 2015 | -4/Warlord | Spotted Executioner 2036 | -4/Warlord | Spotted Executioner 2043 | -4/Warlord | Discovered new exit (range 9) 2125 | -4/Warlord | Spotted B-90 Cyclops 2148 | -4/Warlord | Spotted Striker 2170 | -4/Warlord | Entered Proximity Caves 2617 | -3/Proximity Caves | Discovered new exit (range 15) 2625 | -3/Proximity Caves | Entered Research 2626 | -3/Research | Identified exit to Quarantine 2763 | -3/Research | Spotted B-90 Cyclops 2821 | -3/Research | Core integrity fell below 50% 2846 | -3/Research | Entered Quarantine 2876 | -3/Quarantine | Lost 11 parts (2p6n2u1w) 3055 | -3/Quarantine | Core integrity fell below 20% 3075 | -3/Quarantine | Discovered new exit (range 13) 3077 | -3/Quarantine | Lost 3 parts (1p2u) 3105 | -3/Quarantine | Entered Research 3158 | -2/Research | Discovered new exit (range 13) 3170 | -2/Research | Entered Access 3324 | -1/Access | Lost 3 parts (1p1n1u) 3353 | -1/Access | Core integrity fell below 50% 3387 | -1/Access | Scrapoid reinforcements arrived 3437 | -1/Access | Lost 4 allies 3451 | -1/Access | Lost 8 parts (2p3n2u1w) 3515 | -1/Access | Core integrity fell below 20% 3657 | -1/Access | Spotted B-99 Colossus 3712 | -1/Access | System corruption reached 10% 3718 | -1/Access | Destroyed by P-80 Master with Gamma Rifle Last Messages --------------- 03665_ Mic. Antimatter Reactor destroyed. 03667_ The unstable cave ceiling collapses. 03669_ SYOM0|J7G9QR>WHCCCC|#>HV|#7KQBBULH&23 03695_ ALERT: Potential suspicious activity detected, Programmers report to Access Zone 4X. 03695_ Sml. Battery destroyed. 03698_ ALERT: Hostiles spotted, dispatching reinforcements to Terminal A020. 03703_ Released control of P-80 Master. 03704_ Took control of G-73 Enforcer. 03704_ Extracted analysis data for G-73 Enforcer. 03704_ P-80 Master reactivates. 03707_ P-80 Master resets P-80 Master, system corruption cleaned. 03709_ Destroyed Imp. Antigrav System. 03711_ System corrupted: Component data lost. 03712_ P-80 Master destroyed. 03717_ Phase Gun destroyed. Map ----- +----------------------------------------------------+ | ??????????????????????? | | ???????????????????????? | | ???????????????????????????# | | ???????????????????????????# | | ???????????????????????????# | | ???????????????????????????# | | ???????????????????????????# | | ???????????????????????????# ## | | ???????????#+##+#??????????# #? | | ???????????# #??????????# #? | | ???????????# #??????????# #? | | ???????????# #??????????# #? | | ???????????# ############ ## | | ???????????# + | | ???????????# #################### | | ???????????# #??????????????????? | | ???????????# #??????????????????? | | ???????????# #??????????????????? | | ?????# ##### ##########?????????? | | ?????# +?????????? | | ???######### #?????????? | | ???#! *// # #?????????? | | ???# *// t +?????????? | | ???# */ !p# ##?????????? | | ???######;## #??????????? | | # g%## #??????????? | | #! # #??????????? | | # p ?????????? | | # = # ###????????? | | # # #??????????? | | # *# ####+###??????????? | | # # #?????????????????? | | ########### #?????????????????? | | ??????????? #?????????????????? | | ??????????? ??????????????????? | | ??????????? ??????????????????? | | ???????????"" ??????????????????? | | ????????????????????????????????? | | ????????????????????????????????? | | ????????????????????????????????? | | ????????????????????????????????? | | ????????????????????????????????? | | ????????????????????????????????? | | ????????????????????????????????? | | ????????????????????????????????? | | ????????????????????????????????? | | ????????????????????????????????? | | ????????????????????????????????? | | ????????????????????????????????? | | ????????????????????????????????? | +----------------------------------------------------+ Best States ------------- Heat Dissipation 130 Energy Generation 34 Energy Capacity 300 Matter Stores 100 Matter Capacity 125 Sight Range 16 Terrain Scan Range 16 Terrain Scan Density 85 Additional Mass Support 9 Resistance: KI 25 Resistance: EX 25 Resistance: EM 75 Evasion (%) 63 Target Analysis 8 Recoil Reduction 2 Salvage Targeting 4 Item Schematics ----------------- None Robot Schematics ------------------ None Fabricated ------------ Nothing Repaired ---------- Nothing Alien Tech Used ----------------- None Achievements -------------- None Challenges ------------ None Polymind | -11 -10 -10 -10 -7 -5 -5 -4 -4 -4 -4 -3 -3 -3 -2 -1 ---------- Run | Yrd Mat Min Sub Scr Fac DSF Fac Upp Upp War Pro Res Qua Res Acc Hosts 15 | . 1 . . . . . 1 . 1 . . 4 3 . 5 Combat Hostiles 5 | . . . . . . . . . 1 . . 1 1 . 2 Allies 1 | . . . . . . . . . . . . . . . 1 Unique Host Classes 8 | . 1 . . . . . . . 1 . . 4 . . 2 Average Host Suspicion 36 | . . 2 . . 23 60 18 22 71 22 2 75 69 24 87 Unsuspicious Activity 139 | . 2 15 . . . . 2 . 20 . . 5 29 3 63 Returns to Shadow . | . . . . . . . . . . . . . . . . Fuzzy Dispatches 5 | . . . . . . . . . . . . . 1 . 4 Protomatter Created 3150 | . . . . . . . . . 29 2855 . 17 13 . 236 Used 307 | . 5 . . . . . 5 . 53 . . 39 34 . 171 Decayed 814 | . . . . . . . . . . 814 . . . . . Highest Spend 70 | . 5 . . . . . 5 . 53 . . 24 24 . 70 Top 5 Hosts by Kills: A-15 Conveyor (-3/Quarantine: 2) P-70 Sage (-4/Upper Caves: 1) G-73 Enforcer (-1/Access: 1) Game ------ Seed TiamatGyrokineticSpiker Manual? 0 Play Time 00:47:18 Cumulative 186.0 hours Start 2025.05.23 @ 15:16:52 End 2025.05.23 @ 16:15:41 Sessions 1 Manual Loads 0 Difficulty Rogue Special Mode Winter2022/Polymind Game No. 213 Rogue 213 Adventurer 0 Explorer 0 Win Type - Total 1 Types 1/0/0/0/0/0/0/0/0/0 Lore% 72 Gallery% 70 Achievement% 61 Wizard Run 0 Options --------- Layout 1 ASCII 0 Keyboard 0 Movement Numpad Keybinds 0 Fullscreen 1 Font 24/Smallcaps Map View 50x35 Zoom Use 0% Tactical HUD 1 Map Filters NONE Filters NONE Steam 1 RUN: 19d3cb9e-5880-45f4-a4a3-4e5c5c83982c